[Event "*** Titled Tuesday Blitz"]
[Site "Chess.com"]
[Date "2018.05.01"]
[Round "2"]
[White "TigranLPetrosyan"]
[Black "maciek_92"]
[Result "1/2-1/2"]
[WhiteElo "2668"]
[BlackElo "2586"]
[TimeControl "180+2"]
[EndTime "13:22:24 PDT"]
[Termination "Game drawn by agreement"]

1. Nf3 {[%clk 0:03:01.9]} 1... Nf6 {[%clk 0:03:00.7]} 2. g3 {[%clk 0:03:03.8]}
2... b6 {[%clk 0:02:59]} 3. Bg2 {[%clk 0:03:05.7]} 3... Bb7 {[%clk 0:03:00.5]}
4. O-O {[%clk 0:03:04.1]} 4... e6 {[%clk 0:03:00.2]} 5. d3 {[%clk 0:03:04.8]}
5... d5 {[%clk 0:03:00.4]} 6. Nbd2 {[%clk 0:03:04.8]} 6... Bc5 {[%clk
0:02:49.2]} 7. e4 {[%clk 0:03:01.2]} 7... O-O {[%clk 0:02:49.6]} 8. e5 {[%clk
0:02:55.4]} 8... Nfd7 {[%clk 0:02:50.3]} 9. Re1 {[%clk 0:02:53.2]} 9... Nc6
{[%clk 0:02:40.3]} 10. Nf1 {[%clk 0:02:49.4]} 10... h6 {[%clk 0:02:36.9]} 11. c3
{[%clk 0:02:46.8]} 11... a5 {[%clk 0:02:37]} 12. h4 {[%clk 0:02:43.6]} 12... b5
{[%clk 0:02:36]} 13. N1h2 {[%clk 0:02:42.8]} 13... b4 {[%clk 0:02:36.9]} 14. Ng4
{[%clk 0:02:38.8]} 14... Qe7 {[%clk 0:02:27.4]} 15. Bf4 {[%clk 0:02:38.5]} 15...
f5 {[%clk 0:02:14.7]} 16. exf6 {[%clk 0:02:29.8]} 16... Nxf6 {[%clk 0:02:16]}
17. Nge5 {[%clk 0:02:24.5]} 17... Nxe5 {[%clk 0:02:15.4]} 18. Nxe5 {[%clk
0:02:24.2]} 18... Qe8 {[%clk 0:02:14.5]} 19. Qd2 {[%clk 0:02:16.7]} 19... Bd6
{[%clk 0:02:03.6]} 20. d4 {[%clk 0:02:15.7]} 20... Ne4 {[%clk 0:01:46.1]} 21.
Qe3 {[%clk 0:02:15.7]} 21... Bxe5 {[%clk 0:01:21.7]} 22. Bxe5 {[%clk 0:02:14.4]}
22... Nxf2 {[%clk 0:01:17.7]} 23. Bxc7 {[%clk 0:02:13.3]} 23... Ne4 {[%clk
0:01:11.5]} 24. Rf1 {[%clk 0:02:06.3]} 24... Qg6 {[%clk 0:01:10.9]} 25. cxb4
{[%clk 0:01:54.5]} 25... axb4 {[%clk 0:01:05.3]} 26. Bf4 {[%clk 0:01:55.1]}
26... Rfc8 {[%clk 0:00:51.5]} 27. Rfc1 {[%clk 0:01:41.1]} 27... Rxc1+ {[%clk
0:00:50.9]} 28. Rxc1 {[%clk 0:01:36.6]} 28... Rxa2 {[%clk 0:00:33.5]} 29. Be5
{[%clk 0:01:36]} 29... Nf6 {[%clk 0:00:15.4]} 30. Qd2 {[%clk 0:01:25.8]} 30...
Ba6 {[%clk 0:00:12.7]} 31. Qxb4 {[%clk 0:01:12.2]} 31... Bc4 {[%clk 0:00:13.5]}
32. Qd2 {[%clk 0:01:08]} 32... Ng4 {[%clk 0:00:12.8]} 33. Bd6 {[%clk 0:01:04]}
33... Qd3 {[%clk 0:00:13]} 34. Qf4 {[%clk 0:00:36.2]} 34... Rxb2 {[%clk
0:00:09]} 35. Qxg4 {[%clk 0:00:27.6]} 35... Rxg2+ {[%clk 0:00:08.9]} 36. Kxg2
{[%clk 0:00:22.5]} 36... Qd2+ {[%clk 0:00:10.5]} 37. Kh3 {[%clk 0:00:22.8]}
37... Qxc1 {[%clk 0:00:11.9]} 38. Qxe6+ {[%clk 0:00:18.3]} 38... Kh8 {[%clk
0:00:11.2]} 39. Qc8+ {[%clk 0:00:14.1]} 39... Kh7 {[%clk 0:00:12.5]} 40. Qf5+
{[%clk 0:00:16]} 40... Kh8 {[%clk 0:00:13.9]} 41. Qc8+ {[%clk 0:00:13.5]} 41...
Kh7 {[%clk 0:00:15.1]} 42. Qf5+ {[%clk 0:00:15.4]} 42... Kh8 {[%clk 0:00:16.3]}
43. Kg2 {[%clk 0:00:17.3]} 43... Qd2+ {[%clk 0:00:15.9]} 44. Qf2 {[%clk
0:00:17.3]} 44... Qd3 {[%clk 0:00:12.5]} 45. Be5 {[%clk 0:00:14.9]} 45... Qe4+
{[%clk 0:00:13.1]} 46. Kh2 {[%clk 0:00:14.9]} 46... Qe2 {[%clk 0:00:13.4]} 47.
Kg1 {[%clk 0:00:13.1]} 47... Qxf2+ {[%clk 0:00:13.9]} 48. Kxf2 {[%clk
0:00:14.8]} 48... Kh7 {[%clk 0:00:15.3]} 49. h5 {[%clk 0:00:15.2]} 49... g6
{[%clk 0:00:16.3]} 50. g4 {[%clk 0:00:15.7]} 50... gxh5 {[%clk 0:00:17.5]} 51.
gxh5 {[%clk 0:00:17.6]} 51... Bb3 {[%clk 0:00:19.1]} 52. Kg3 {[%clk 0:00:19.1]}
52... Bd1 {[%clk 0:00:19.1]} 53. Kh4 {[%clk 0:00:21]} 1/2-1/2

[Event "*** Titled Tuesday Blitz"]
[Site "Chess.com"]
[Date "2018.05.01"]
[Round "2"]
[White "FMJoseHerrera"]
[Black "Yurovskykh_Oleksandr"]
[Result "1-0"]
[WhiteElo "2410"]
[BlackElo "2355"]
[TimeControl "180+2"]
[EndTime "13:22:26 PDT"]
[Termination "FMJoseHerrera won by resignation"]

1. Nf3 {[%clk 0:03:01.9]} 1... d5 {[%clk 0:03:00.1]} 2. g3 {[%clk 0:03:03.8]}
2... Bg4 {[%clk 0:02:58.2]} 3. Bg2 {[%clk 0:03:05.7]} 3... Nd7 {[%clk
0:02:59.6]} 4. O-O {[%clk 0:03:06.6]} 4... c6 {[%clk 0:03:00.9]} 5. d3 {[%clk
0:03:07.3]} 5... e6 {[%clk 0:03:00.5]} 6. c3 {[%clk 0:03:07.2]} 6... Bd6 {[%clk
0:03:01.8]} 7. Qb3 {[%clk 0:03:07.7]} 7... Qb6 {[%clk 0:03:02.1]} 8. Be3 {[%clk
0:03:09.2]} 8... Qxb3 {[%clk 0:03:01.1]} 9. axb3 {[%clk 0:03:11.1]} 9... a6
{[%clk 0:03:01.8]} 10. b4 {[%clk 0:03:12.5]} 10... Rc8 {[%clk 0:02:59.2]} 11.
Nbd2 {[%clk 0:03:12]} 11... Ne7 {[%clk 0:02:56.5]} 12. Nb3 {[%clk 0:03:12.9]}
12... O-O {[%clk 0:02:51.3]} 13. Na5 {[%clk 0:03:13.3]} 13... Rc7 {[%clk
0:02:49]} 14. Rfe1 {[%clk 0:03:10.6]} 14... e5 {[%clk 0:02:46.6]} 15. Nd2 {[%clk
0:03:02.2]} 15... Nf5 {[%clk 0:02:40.5]} 16. Nf1 {[%clk 0:02:28.4]} 16... Nxe3
{[%clk 0:02:41.2]} 17. Nxe3 {[%clk 0:02:30.3]} 17... Be6 {[%clk 0:02:42.7]} 18.
Red1 {[%clk 0:02:28.1]} 18... f5 {[%clk 0:02:08.8]} 19. Nc2 {[%clk 0:01:38.7]}
19... Be7 {[%clk 0:02:00.2]} 20. e4 {[%clk 0:01:18.3]} 20... Nf6 {[%clk
0:01:55.8]} 21. exd5 {[%clk 0:01:12.1]} 21... cxd5 {[%clk 0:01:50.6]} 22. Re1
{[%clk 0:01:11.6]} 22... Bd6 {[%clk 0:01:51.5]} 23. Nd4 {[%clk 0:01:08.5]} 23...
Bd7 {[%clk 0:01:51.6]} 24. Nf3 {[%clk 0:01:05.6]} 24... e4 {[%clk 0:01:49.6]}
25. dxe4 {[%clk 0:01:06.5]} 25... fxe4 {[%clk 0:00:55.2]} 26. Nd4 {[%clk
0:01:06.9]} 26... Be5 {[%clk 0:00:46.4]} 27. Nab3 {[%clk 0:01:06.5]} 27... Bc8
{[%clk 0:00:18.8]} 28. Rad1 {[%clk 0:01:06.5]} 28... h6 {[%clk 0:00:13.5]} 29.
h3 {[%clk 0:01:05.5]} 29... Bd6 {[%clk 0:00:13]} 30. Nc2 {[%clk 0:01:02.9]}
30... Be5 {[%clk 0:00:12.4]} 31. Ne3 {[%clk 0:01:02.4]} 31... Be6 {[%clk
0:00:13.9]} 32. Nd4 {[%clk 0:00:54.2]} 32... Bf7 {[%clk 0:00:13.1]} 33. Ndf5
{[%clk 0:00:54.8]} 33... Rfc8 {[%clk 0:00:12.5]} 34. Rd2 {[%clk 0:00:49.3]}
34... b6 {[%clk 0:00:12.3]} 35. Ra1 {[%clk 0:00:45.4]} 35... Ra7 {[%clk
0:00:13]} 36. Bf1 {[%clk 0:00:44.4]} 36... a5 {[%clk 0:00:13.7]} 37. b5 {[%clk
0:00:41.3]} 37... Rac7 {[%clk 0:00:14.3]} 38. Rad1 {[%clk 0:00:40.2]} 38... Kf8
{[%clk 0:00:15.1]} 39. Nd6 {[%clk 0:00:40.1]} 39... Rd8 {[%clk 0:00:15.3]} 40.
Nxf7 {[%clk 0:00:41.2]} 40... Kxf7 {[%clk 0:00:17.2]} 41. Nxd5 {[%clk
0:00:42.4]} 41... Rcd7 {[%clk 0:00:16.1]} 42. Bc4 {[%clk 0:00:35.7]} 42... Nxd5
{[%clk 0:00:17.5]} 43. Bxd5+ {[%clk 0:00:19.5]} 43... Ke7 {[%clk 0:00:18.3]} 44.
c4 {[%clk 0:00:21.4]} 44... e3 {[%clk 0:00:19.5]} 45. Re2 {[%clk 0:00:21.2]}
45... exf2+ {[%clk 0:00:19.9]} 46. Kxf2 {[%clk 0:00:23.1]} 46... Kf6 {[%clk
0:00:21.3]} 47. Rde1 {[%clk 0:00:24.3]} 47... Re7 {[%clk 0:00:21.5]} 48. Kg2
{[%clk 0:00:25.6]} 48... Rde8 {[%clk 0:00:21]} 49. Rf1+ {[%clk 0:00:27.5]} 49...
Kg6 {[%clk 0:00:17.4]} 50. Be4+ {[%clk 0:00:29.1]} 50... Kh5 {[%clk 0:00:17.4]}
51. Rf5+ {[%clk 0:00:28.9]} 51... g5 {[%clk 0:00:18.7]} 52. g4+ {[%clk
0:00:19.4]} 52... Kh4 {[%clk 0:00:18.6]} 53. Bc6 {[%clk 0:00:20.9]} 53... Bf6
{[%clk 0:00:17.8]} 54. Rxe7 {[%clk 0:00:20.4]} 54... Rxe7 {[%clk 0:00:19.3]} 55.
Rxf6 {[%clk 0:00:21.9]} 1-0

[Event "*** Titled Tuesday Blitz"]
[Site "Chess.com"]
[Date "2018.05.01"]
[Round "2"]
[White "Kawhi_Leonard2"]
[Black "silverback96"]
[Result "1/2-1/2"]
[WhiteElo "2167"]
[BlackElo "2047"]
[TimeControl "180+2"]
[EndTime "13:22:31 PDT"]
[Termination "Game drawn by agreement"]

1. e4 {[%clk 0:03:01.9]} 1... e6 {[%clk 0:02:56.4]} 2. d4 {[%clk 0:03:00]} 2...
d5 {[%clk 0:02:57.8]} 3. Nd2 {[%clk 0:03:01.1]} 3... a6 {[%clk 0:02:55.9]} 4.
Bd3 {[%clk 0:02:57.7]} 4... c5 {[%clk 0:02:53.6]} 5. Ngf3 {[%clk 0:02:32.2]}
5... Nc6 {[%clk 0:02:52.4]} 6. c3 {[%clk 0:02:29.2]} 6... Nf6 {[%clk 0:02:52.7]}
7. e5 {[%clk 0:02:26.1]} 7... Nd7 {[%clk 0:02:52.4]} 8. O-O {[%clk 0:02:26.3]}
8... g5 {[%clk 0:02:53.3]} 9. h3 {[%clk 0:02:18.3]} 9... h5 {[%clk 0:02:53.8]}
10. g4 {[%clk 0:02:18.1]} 10... hxg4 {[%clk 0:02:53]} 11. hxg4 {[%clk
0:02:19.3]} 11... Qb6 {[%clk 0:02:34.6]} 12. Kg2 {[%clk 0:02:11.9]} 12... cxd4
{[%clk 0:02:33.6]} 13. cxd4 {[%clk 0:02:13.2]} 13... Nxd4 {[%clk 0:02:33.7]} 14.
Nxd4 {[%clk 0:02:10.3]} 14... Qxd4 {[%clk 0:02:34.8]} 15. Nb3 {[%clk 0:02:09.1]}
15... Qxe5 {[%clk 0:02:30.4]} 16. Be3 {[%clk 0:02:10.1]} 16... Qh2+ {[%clk
0:01:38.3]} 17. Kf3 {[%clk 0:02:10.5]} 17... Ne5+ {[%clk 0:01:38.3]} 18. Ke2
{[%clk 0:02:08.9]} 18... Nxg4 {[%clk 0:01:37]} 19. Rh1 {[%clk 0:01:58.1]} 19...
Qxh1 {[%clk 0:01:36.4]} 20. Qxh1 {[%clk 0:01:59]} 20... Rxh1 {[%clk 0:01:38.1]}
21. Rxh1 {[%clk 0:02:00]} 21... Nxe3 {[%clk 0:01:40]} 22. Kxe3 {[%clk
0:01:56.1]} 22... e5 {[%clk 0:01:41.4]} 23. Rh8 {[%clk 0:01:49]} 23... Be6
{[%clk 0:01:30.6]} 24. Nc5 {[%clk 0:01:45]} 24... O-O-O {[%clk 0:01:31.9]} 25.
Nxe6 {[%clk 0:01:44.1]} 25... fxe6 {[%clk 0:01:33.8]} 26. Rh5 {[%clk 0:01:26.6]}
26... e4 {[%clk 0:01:34]} 27. Be2 {[%clk 0:01:26.9]} 27... Bc5+ {[%clk
0:01:34.6]} 28. Kd2 {[%clk 0:01:28.1]} 28... Be7 {[%clk 0:01:34.4]} 29. Bg4
{[%clk 0:01:28.4]} 29... Rd6 {[%clk 0:01:34]} 30. Rh6 {[%clk 0:01:29.6]} 30...
Kd7 {[%clk 0:01:34.6]} 31. Rh7 {[%clk 0:01:29.7]} 31... d4 {[%clk 0:01:33.1]}
32. a3 {[%clk 0:01:28.8]} 32... Rb6 {[%clk 0:01:33]} 33. b4 {[%clk 0:01:28.3]}
33... a5 {[%clk 0:01:34.1]} 34. bxa5 {[%clk 0:01:23.3]} 34... Rb2+ {[%clk
0:01:35]} 35. Ke1 {[%clk 0:01:23.9]} 35... Kd8 {[%clk 0:01:15.7]} 36. Bxe6
{[%clk 0:01:23.1]} 36... Rb5 {[%clk 0:00:34.6]} 37. Rf7 {[%clk 0:00:58.9]} 37...
Rxa5 {[%clk 0:00:31.3]} 38. Bf5 {[%clk 0:01:00.2]} 38... Re5 {[%clk 0:00:29.2]}
39. a4 {[%clk 0:00:54.7]} 39... d3 {[%clk 0:00:24.9]} 40. Kd1 {[%clk 0:00:49.2]}
40... Ke8 {[%clk 0:00:25.2]} 41. Bg6 {[%clk 0:00:48.8]} 41... Kd7 {[%clk
0:00:26.4]} 42. f3 {[%clk 0:00:48]} 42... exf3 {[%clk 0:00:06.9]} 43. Rxf3
{[%clk 0:00:47.2]} 43... d2 {[%clk 0:00:04.8]} 44. Kxd2 {[%clk 0:00:38.5]} 44...
g4 {[%clk 0:00:05.6]} 45. Bf5+ {[%clk 0:00:36.7]} 45... Kc7 {[%clk 0:00:06.4]}
46. Bxg4 {[%clk 0:00:38]} 46... Re4 {[%clk 0:00:07.6]} 47. Rc3+ {[%clk
0:00:29.2]} 47... Kb6 {[%clk 0:00:08.9]} 48. Rb3+ {[%clk 0:00:25.1]} 48... Kc7
{[%clk 0:00:09.5]} 49. Bf3 {[%clk 0:00:24.8]} 49... Rb4 {[%clk 0:00:02.3]} 50.
Rc3+ {[%clk 0:00:25]} 50... Kb8 {[%clk 0:00:02.8]} 51. a5 {[%clk 0:00:25.3]}
51... Rb5 {[%clk 0:00:03.4]} 52. Rd3 {[%clk 0:00:21]} 52... Rxa5 {[%clk
0:00:03.9]} 53. Bxb7 {[%clk 0:00:21.3]} 53... Kxb7 {[%clk 0:00:03.8]} 54. Rd7+
{[%clk 0:00:22.1]} 54... Kc6 {[%clk 0:00:05.7]} 55. Rxe7 {[%clk 0:00:23.5]}
55... Rd5+ {[%clk 0:00:07.3]} 56. Kc3 {[%clk 0:00:24]} 56... Kd6 {[%clk
0:00:09.2]} 57. Rh7 {[%clk 0:00:23.1]} 1/2-1/2

[Event "*** Titled Tuesday Blitz"]
[Site "Chess.com"]
[Date "2018.05.01"]
[Round "2"]
[White "DenksportAcademie"]
[Black "catalin009"]
[Result "1/2-1/2"]
[WhiteElo "2237"]
[BlackElo "2395"]
[TimeControl "180+2"]
[EndTime "13:22:34 PDT"]
[Termination "Game drawn by agreement"]

1. b3 {[%clk 0:03:01.9]} 1... e5 {[%clk 0:02:56.8]} 2. Bb2 {[%clk 0:03:02.8]}
2... Nc6 {[%clk 0:02:58.3]} 3. e3 {[%clk 0:03:03.9]} 3... Nf6 {[%clk 0:02:54.2]}
4. Bb5 {[%clk 0:03:04.4]} 4... Bd6 {[%clk 0:02:55.5]} 5. Na3 {[%clk 0:03:05.4]}
5... Na5 {[%clk 0:02:53.9]} 6. Be2 {[%clk 0:02:39.6]} 6... Qe7 {[%clk
0:02:50.6]} 7. Nb5 {[%clk 0:02:37.3]} 7... Nc6 {[%clk 0:02:41.3]} 8. Nf3 {[%clk
0:02:33.9]} 8... O-O {[%clk 0:02:38.4]} 9. O-O {[%clk 0:02:34.2]} 9... e4 {[%clk
0:02:36]} 10. Nfd4 {[%clk 0:02:30.9]} 10... Nxd4 {[%clk 0:02:34.6]} 11. Nxd4
{[%clk 0:02:31]} 11... Qe5 {[%clk 0:02:19.6]} 12. g3 {[%clk 0:02:21.1]} 12... c5
{[%clk 0:02:04.9]} 13. Nb5 {[%clk 0:02:19.8]} 13... Qxb2 {[%clk 0:02:05.8]} 14.
Nxd6 {[%clk 0:02:20.2]} 14... Qe5 {[%clk 0:02:07.4]} 15. Nxc8 {[%clk 0:02:14.9]}
15... Raxc8 {[%clk 0:02:00]} 16. f3 {[%clk 0:02:15.9]} 16... d5 {[%clk
0:01:55.7]} 17. fxe4 {[%clk 0:02:16.3]} 17... Nxe4 {[%clk 0:01:55.6]} 18. Bf3
{[%clk 0:02:12.1]} 18... d4 {[%clk 0:01:50.9]} 19. Bxe4 {[%clk 0:01:59.3]} 19...
Qxe4 {[%clk 0:01:49.9]} 20. Rf4 {[%clk 0:02:00.1]} 20... Qe5 {[%clk 0:01:47.6]}
21. e4 {[%clk 0:01:31.1]} 21... Rc6 {[%clk 0:01:20.3]} 22. d3 {[%clk 0:01:30.3]}
22... b5 {[%clk 0:01:20.6]} 23. Qf3 {[%clk 0:01:30.6]} 23... c4 {[%clk
0:01:19.7]} 24. Rf1 {[%clk 0:01:22.3]} 24... Qe6 {[%clk 0:01:02.5]} 25. Rf5
{[%clk 0:00:54.5]} 25... cxb3 {[%clk 0:01:01.2]} 26. cxb3 {[%clk 0:00:54.2]}
26... a6 {[%clk 0:01:01.4]} 27. Rd5 {[%clk 0:00:52.2]} 27... Rc3 {[%clk
0:01:01.3]} 28. Rxd4 {[%clk 0:00:44.8]} 28... Qb6 {[%clk 0:01:00.7]} 29. Qf2
{[%clk 0:00:45.8]} 29... Qc5 {[%clk 0:00:34]} 30. Rd7 {[%clk 0:00:43.4]} 30...
Qxf2+ {[%clk 0:00:25]} 31. Rxf2 {[%clk 0:00:43.3]} 31... f6 {[%clk 0:00:26.6]}
32. Ra7 {[%clk 0:00:31]} 32... Rxd3 {[%clk 0:00:26.4]} 33. Rxa6 {[%clk
0:00:31.6]} 33... Re8 {[%clk 0:00:22.6]} 34. Rb6 {[%clk 0:00:29.7]} 34... Re5
{[%clk 0:00:20.6]} 35. Re2 {[%clk 0:00:23.6]} 35... f5 {[%clk 0:00:19]} 36. Rb8+
{[%clk 0:00:15.3]} 36... Kf7 {[%clk 0:00:19.4]} 37. Rf2 {[%clk 0:00:15.4]} 37...
g6 {[%clk 0:00:11.9]} 38. exf5 {[%clk 0:00:15.6]} 38... gxf5 {[%clk 0:00:13.8]}
39. g4 {[%clk 0:00:14.5]} 39... Rdd5 {[%clk 0:00:06.9]} 40. Rxf5+ {[%clk
0:00:14.2]} 40... Rxf5 {[%clk 0:00:07.8]} 41. gxf5 {[%clk 0:00:15.2]} 41... Rxf5
{[%clk 0:00:09.6]} 42. Kg2 {[%clk 0:00:15]} 42... Rc5 {[%clk 0:00:10.3]} 43. Kg3
{[%clk 0:00:15.4]} 43... Kg6 {[%clk 0:00:10.9]} 44. Kg4 {[%clk 0:00:15.7]} 44...
Rc2 {[%clk 0:00:08.1]} 45. Rxb5 {[%clk 0:00:15.3]} 45... Rxa2 {[%clk 0:00:09.6]}
46. h4 {[%clk 0:00:16.1]} 46... Rg2+ {[%clk 0:00:07.9]} 47. Kh3 {[%clk
0:00:16.5]} 47... Rb2 {[%clk 0:00:08.4]} 48. Kg3 {[%clk 0:00:16.3]} 48... Rc2
{[%clk 0:00:09.4]} 49. Rb6+ {[%clk 0:00:16]} 49... Kf5 {[%clk 0:00:09.9]} 50.
Rb7 {[%clk 0:00:15.1]} 50... Rc3+ {[%clk 0:00:10.6]} 51. Kg2 {[%clk 0:00:15.7]}
51... Kg4 {[%clk 0:00:11.3]} 52. Rxh7 {[%clk 0:00:15.6]} 52... Rxb3 {[%clk
0:00:12.1]} 53. Rg7+ {[%clk 0:00:15.3]} 1/2-1/2

[Event "*** Titled Tuesday Blitz"]
[Site "Chess.com"]
[Date "2018.05.01"]
[Round "2"]
[White "colegiodemadrid"]
[Black "MehdiHosseinipour"]
[Result "0-1"]
[WhiteElo "2293"]
[BlackElo "2444"]
[TimeControl "180+2"]
[EndTime "13:22:38 PDT"]
[Termination "MehdiHosseinipour won by resignation"]

1. e4 {[%clk 0:03:01.9]} 1... c5 {[%clk 0:02:59.1]} 2. Nf3 {[%clk 0:03:01.8]}
2... Nc6 {[%clk 0:02:58.5]} 3. d4 {[%clk 0:03:03.2]} 3... cxd4 {[%clk
0:02:58.5]} 4. Nxd4 {[%clk 0:03:04.7]} 4... Nf6 {[%clk 0:03:00.1]} 5. Nc3 {[%clk
0:03:06.2]} 5... d6 {[%clk 0:03:00.1]} 6. Bc4 {[%clk 0:03:02.4]} 6... e6 {[%clk
0:03:00.6]} 7. Be3 {[%clk 0:03:01.9]} 7... a6 {[%clk 0:03:00.5]} 8. Qe2 {[%clk
0:03:02.4]} 8... Be7 {[%clk 0:03:00.2]} 9. Bb3 {[%clk 0:03:00.8]} 9... Na5
{[%clk 0:03:01]} 10. O-O-O {[%clk 0:02:59.7]} 10... Qc7 {[%clk 0:02:57.8]} 11.
g4 {[%clk 0:02:59.8]} 11... O-O {[%clk 0:02:47.8]} 12. g5 {[%clk 0:03:00.2]}
12... Nxb3+ {[%clk 0:02:48.4]} 13. axb3 {[%clk 0:02:59.3]} 13... Nd7 {[%clk
0:02:49.2]} 14. Rhg1 {[%clk 0:02:57.1]} 14... b5 {[%clk 0:02:36.8]} 15. Qh5
{[%clk 0:02:51.5]} 15... b4 {[%clk 0:02:24.9]} 16. Na4 {[%clk 0:02:50.8]} 16...
Bb7 {[%clk 0:02:14.1]} 17. f3 {[%clk 0:02:43]} 17... Rfc8 {[%clk 0:02:13.1]} 18.
Rd2 {[%clk 0:02:34.2]} 18... Ne5 {[%clk 0:02:10.9]} 19. Rg3 {[%clk 0:02:30.7]}
19... g6 {[%clk 0:02:10.1]} 20. Qh6 {[%clk 0:02:20.1]} 20... Bf8 {[%clk
0:02:09.1]} 21. Qh4 {[%clk 0:02:21.3]} 21... Be7 {[%clk 0:01:37.9]} 22. Qh6
{[%clk 0:02:21.2]} 22... Bf8 {[%clk 0:01:36.6]} 23. Qh4 {[%clk 0:02:21.2]} 23...
Qd8 {[%clk 0:01:33.6]} 24. Rh3 {[%clk 0:02:14.2]} 24... h5 {[%clk 0:01:33.9]}
25. gxh6 {[%clk 0:02:13.8]} 25... Qxh4 {[%clk 0:01:34.8]} 26. Rxh4 {[%clk
0:02:15.3]} 26... Be7 {[%clk 0:01:34.8]} 27. Rh3 {[%clk 0:02:15.2]} 27... Nd7
{[%clk 0:01:35]} 28. Rg3 {[%clk 0:02:10.7]} 28... Kh7 {[%clk 0:01:33.2]} 29. Kb1
{[%clk 0:02:05.7]} 29... d5 {[%clk 0:01:22]} 30. exd5 {[%clk 0:02:00.3]} 30...
Bxd5 {[%clk 0:01:21.3]} 31. f4 {[%clk 0:01:50.7]} 31... Bf8 {[%clk 0:00:54.3]}
32. f5 {[%clk 0:01:47.2]} 32... gxf5 {[%clk 0:00:55.2]} 33. Nxf5 {[%clk
0:01:47.5]} 33... Nf6 {[%clk 0:00:56.9]} 34. Nb6 {[%clk 0:01:20.5]} 34... Ne4
{[%clk 0:00:53.1]} 35. Nd4 {[%clk 0:00:49.7]} 35... Nxd2+ {[%clk 0:00:48.1]} 36.
Bxd2 {[%clk 0:00:50.8]} 36... Bc5 {[%clk 0:00:42.6]} 37. Nxc8 {[%clk 0:00:21.3]}
37... Bxd4 {[%clk 0:00:41.9]} 38. Ne7 {[%clk 0:00:22.7]} 38... Be4 {[%clk
0:00:42.7]} 39. Kc1 {[%clk 0:00:21.5]} 39... a5 {[%clk 0:00:37.7]} 40. c3 {[%clk
0:00:22.7]} 40... Bf6 {[%clk 0:00:36.7]} 41. Bg5 {[%clk 0:00:21.5]} 41... Be5
{[%clk 0:00:28.1]} 42. Re3 {[%clk 0:00:18.8]} 42... f5 {[%clk 0:00:29.2]} 43. h4
{[%clk 0:00:18.1]} 43... Bd6 {[%clk 0:00:20.1]} 44. Re1 {[%clk 0:00:13]} 44...
bxc3 {[%clk 0:00:17]} 45. bxc3 {[%clk 0:00:13.7]} 45... Ra7 {[%clk 0:00:17.6]}
46. Rd1 {[%clk 0:00:14.3]} 46... Ba3+ {[%clk 0:00:18.7]} 47. Kd2 {[%clk
0:00:14.7]} 47... Bxe7 {[%clk 0:00:20.6]} 48. Ke3 {[%clk 0:00:14.2]} 48... Bc5+
{[%clk 0:00:21.5]} 49. Kf4 {[%clk 0:00:15]} 49... Bc2 {[%clk 0:00:20.3]} 50. Rd8
{[%clk 0:00:14.1]} 50... Bxb3 {[%clk 0:00:21.4]} 51. Bf6 {[%clk 0:00:15.2]}
51... Kxh6 {[%clk 0:00:20.4]} 52. Rh8+ {[%clk 0:00:14.5]} 52... Kg6 {[%clk
0:00:21.8]} 53. Be5 {[%clk 0:00:14]} 53... Rh7 {[%clk 0:00:22.7]} 54. Rg8+
{[%clk 0:00:13.6]} 54... Kf7 {[%clk 0:00:24.1]} 55. Rb8 {[%clk 0:00:14.4]} 55...
a4 {[%clk 0:00:24]} 56. Kg5 {[%clk 0:00:14.1]} 56... Be7+ {[%clk 0:00:25.1]} 57.
Kf4 {[%clk 0:00:15.1]} 57... Rxh4+ {[%clk 0:00:26.3]} 58. Ke3 {[%clk 0:00:16.5]}
58... Re4+ {[%clk 0:00:27.3]} 59. Kd3 {[%clk 0:00:18]} 59... Rxe5 {[%clk
0:00:28.7]} 0-1